fUSD/lending_fUSD_20260309
["ID","MTS","AMOUNT","RATE_DAILY","PERIOD"]
[408053027,1773075042720,-607.78,0.00019999,2]
[408053028,1773075042729,-607.78,0.00019999,2]
[408053029,1773075042739,-607.78,0.00019999,2]
[408053030,1773075042750,-607.78,0.00019999,2]
[408053031,1773075042764,-607.78,0.00019999,2]
[408053032,1773075042773,-607.78,0.00019999,2]
[408053033,1773075042783,-607.78,0.00019999,2]
[408053034,1773075042792,-607.78,0.00019999,2]
[408053035,1773075042802,-607.78,0.00019999,2]
[408053036,1773075042812,-607.78,0.00019999,2]
[408053037,1773075042821,-607.78,0.00019999,2]
[408053038,1773075042832,-607.95460695,0.00019999,2]
[408053039,1773075042841,-348.36822526,0.00019999,2]
[408053042,1773075042851,-187.11525039,0.00019999,2]
[408053045,1773075042861,-500.0,0.00019999,2]
[408053047,1773075042870,-355.79104099,0.00019999,2]
[408053048,1773075042880,-1682.0,0.0002,2]
[408053049,1773075042889,-2176.0,0.0002,2]
[408053050,1773075042898,-351130.96033233,0.0002,2]
[408053051,1773075042913,-2614.76381221,0.0002,2]
[408053052,1773075043175,-150.0,0.00019726,2]
[408053053,1773075043186,-414.0,0.00019963,2]
[408053054,1773075043196,-8554.02601907,0.0002,2]
[408053055,1773075043222,-599.99908632,0.0002,2]
[408053056,1773075043234,-3612.81990435,0.0002,2]
[408053078,1773075045823,-150.0,0.00019726,2]
[408053079,1773075045835,-722.25527299,0.0002,2]
[408053080,1773075045847,-999.0,0.0002,2]
[408053081,1773075045858,-350.0,0.0002,2]
[408053082,1773075045931,-839.9099692,0.0002,2]
[408053083,1773075045942,-996.92408764,0.0002,2]
[408053084,1773075045954,-71659.99999995,0.0002,2]
[408053085,1773075045965,-104375.0000005,0.0002,2]
[408053086,1773075045985,-20373.17099739,0.0002,2]
[408053087,1773075045995,-2168.62843531,0.0002,2]
[408053088,1773075046007,-1141.75539225,0.0002,2]
[408053094,1773075175935,200.78,0.00014,2]
[408053096,1773075225632,10019.06854425,0.00016,2]
[408053097,1773075445004,1266.03,0.000145,2]
[408053098,1773075456716,316.5,0.000145,2]
[408053099,1773075467520,316.5,0.000145,2]
[408053100,1773075478811,316.5,0.000145,2]
[408053101,1773075489925,316.5,0.000145,2]
[408053102,1773075595010,17968.12524203,0.0001199,2]
[408053104,1773075607055,24375.39189695,0.000167,2]
[408053105,1773075607279,7828.17420538,0.00014157,2]
[408053106,1773075607305,56530.91070329,0.00014157,2]
[408053108,1773075675763,5374.77277086,0.0001305,2]
[408053109,1773075731348,309.03937992,0.000125,2]
[408053110,1773075738510,474.18475571,0.0001,2]
[408053111,1773075750305,779.2927788,0.0001,2]
[408053112,1773075759910,2033.68377679,0.0001,2]
[408053119,1773076128866,183.36,0.00014,2]
[408053120,1773076147757,5011.167877,7.945e-05,2]
[408053122,1773076204031,267.0,0.00014158,2]
[408053141,1773076232200,-7828.17420538,0.00014158,2]
[408053142,1773076232210,-176.69177669,0.00014943,2]
[408053143,1773076232219,-1200.0,0.00015043,2]
[408053144,1773076232228,-1623.638989,0.00015044,2]
[408053145,1773076232237,-300.0,0.0001512,2]
[408053146,1773076232246,-1517.64,0.000153,2]
[408053147,1773076232255,-510.89446278,0.000154,2]
[408053148,1773076232264,-2251.53104127,0.00015807,2]
[408053149,1773076232273,-5000.00858121,0.000162,5]
[408053150,1773076232281,-1680.0,0.00016547,2]
[408053151,1773076232291,-454.71068769,0.00016944,2]
[408053152,1773076232300,-550.0,0.00016989,2]
[408053153,1773076232309,-500.0,0.0001699,2]
[408053155,1773076232319,-500.0,0.0001699,2]
[408053157,1773076232329,-500.0,0.0001699,2]
[408053158,1773076232340,-500.0,0.0001699,2]
[408053159,1773076232350,-500.0,0.0001699,2]
[408053160,1773076232359,-500.0,0.0001699,2]
[408053161,1773076232369,-500.0,0.0001699,2]
[408053162,1773076232377,-500.0,0.0001699,2]
[408053163,1773076232386,-500.0,0.0001699,2]
[408053164,1773076232395,-200.0,0.0001699,2]
[408053165,1773076232405,-500.0,0.0001699,2]
[408053166,1773076232414,-500.0,0.0001699,2]
[408053167,1773076232423,-151.0,0.0001699,2]
[408053168,1773076232432,-151.0,0.0001699,2]
[408053169,1773076232442,-151.0,0.0001699,2]
[408053170,1773076232452,-151.0,0.0001699,2]
[408053171,1773076232461,-151.0,0.0001699,2]
[408053172,1773076232471,-151.0,0.0001699,2]
[408053173,1773076232481,-151.0,0.0001699,2]
[408053174,1773076232490,-202.29042562,0.0001699,2]
[408053175,1773076232500,-151.0,0.0001699,2]
[408053176,1773076232510,-151.0,0.0001699,2]
[408053177,1773076232519,-151.0,0.0001699,2]
[408053178,1773076232529,-151.0,0.0001699,2]
[408053179,1773076232538,-151.0,0.0001699,2]
[408053180,1773076232547,-500.0,0.0001699,2]
[408053181,1773076232560,-500.0,0.0001699,2]
[408053182,1773076232569,-500.0,0.0001699,2]
[408053183,1773076232579,-151.0,0.0001699,2]
[408053184,1773076232592,-500.0,0.0001699,2]
[408053185,1773076232602,-151.0,0.0001699,2]
[408053186,1773076232611,-500.0,0.0001699,2]
[408053187,1773076232621,-151.0,0.0001699,2]
[408053188,1773076232630,-565.63411788,0.0001699,2]
[408053189,1773076232641,-289.57214403,0.0001699,2]
[408053190,1773076232651,-300.0,0.00017,2]
[408053191,1773076232661,-7706.89798013,0.00017,2]
[408053192,1773076232670,-506.0,0.00017,2]
[408053193,1773076232681,-998.20803551,0.000171,2]
[408053194,1773076232691,-511.0,0.00017342,2]
[408053195,1773076232701,-1552.28,0.0001787,2]
[408053196,1773076232711,-1500.0,0.00017897,2]
[408053197,1773076232720,-640.8045525,0.000179,2]
[408053198,1773076232729,-200.25,0.00018,4]
[408053199,1773076232739,-300.0,0.00018,30]
[408053200,1773076232748,-200.614972,0.00018,2]
[408053201,1773076232757,-500.0,0.00018067,2]
[408053202,1773076232767,-300.0,0.00018093,2]
[408053203,1773076232777,-727.34173774,0.00018121,2]
[408053204,1773076232786,-1370.69099516,0.00018121,2]
[408053205,1773076232795,-2351.0,0.000182,2]
[408053206,1773076232804,-500.0,0.00018235,2]
[408053207,1773076232814,-365.46,0.00018248,2]
[408053208,1773076232823,-2162.31,0.00018248,2]
[408053209,1773076232834,-259.55,0.00018248,2]
[408053210,1773076232844,-150.0,0.00018248,2]
[408053211,1773076232854,-500.0,0.00018309,2]
[408053212,1773076232863,-1370.69099513,0.00018314,2]
[408053213,1773076232872,-600.0,0.00018356,7]
[408053214,1773076232881,-500.0,0.00018356,7]
[408053215,1773076232891,-500.0,0.00018356,7]
[408053216,1773076232901,-2029.35857449,0.00018367,2]
[408053217,1773076232910,-500.0,0.00018367,2]
[408053218,1773076232919,-2669.0,0.000184,2]
[408053219,1773076232929,-150.0,0.00018401,2]
[408053220,1773076232938,-278.0,0.00018435,2]
[408053221,1773076232947,-1370.69099513,0.00018507,2]
[408053222,1773076232956,-153.91,0.0001856,2]
[408053223,1773076232965,-1600.0,0.00018565,2]
[408053224,1773076232975,-4820.12542113,0.00018599,2]
[408053225,1773076232984,-67751.885,0.000186,2]
[408053226,1773076232994,-542.85139971,0.00018686,2]
[408053227,1773076233004,-1370.69099513,0.000187,2]
[408053228,1773076233014,-4000.0,0.00018703,2]
[408053229,1773076233024,-3424.61,0.00018719,2]
[408053230,1773076233033,-847.0,0.0001872,2]
[408053231,1773076233043,-506.0,0.0001875,3]
[408053232,1773076233053,-354.3,0.0001884,2]
[408053233,1773076233062,-3903.31590986,0.00018899,2]
[408053234,1773076233072,-476.0,0.00018994,2]
[408053235,1773076233083,-1000.0,0.00018999,2]
[408053236,1773076233092,-174.61919141,0.00018999,2]
[408053237,1773076233101,-1500.0,0.00018999,2]
[408053238,1773076233113,-1500.0,0.00018999,2]
[408053239,1773076233122,-693.3919763,0.00018999,2]
[408053240,1773076233131,-588.53467861,0.00018999,2]
[408053241,1773076233140,-275.25252548,0.00018999,2]
[408053242,1773076233151,-262.90206542,0.00018999,2]
[408053243,1773076233160,-150.0,0.00019,2]
[408053244,1773076233170,-3903.3159098,0.0001901,2]
[408053245,1773076233179,-160.24329577,0.00019014,2]
[408053246,1773076233188,-160.24329577,0.00019014,2]
[408053247,1773076233198,-1068.28863848,0.00019014,2]
[408053248,1773076233207,-150.0,0.00019019,3]
[408053249,1773076233217,-852.0,0.0001904,2]
[408053250,1773076233227,-1068.28863848,0.00019068,2]
[408053251,1773076233238,-476.0,0.00019074,2]
[408053252,1773076233248,-476.0,0.00019088,2]
[408053253,1773076233258,-3903.3159098,0.00019121,2]
[408053254,1773076233268,-160.24329577,0.00019123,2]
[408053255,1773076233277,-160.24329577,0.00019123,2]
[408053256,1773076233286,-1068.28863848,0.00019151,2]
[408053257,1773076233296,-365.46,0.0001916,2]
[408053258,1773076233305,-4000.0,0.0001917,2]
[408053259,1773076233314,-1000.0,0.00019178,2]
[408053260,1773076233323,-476.0,0.00019184,2]
[408053261,1773076233334,-354.3,0.00019221,2]
[408053262,1773076233344,-3903.3159098,0.00019233,2]
[408053263,1773076233353,-160.24329577,0.00019233,2]
[408053264,1773076233363,-160.24329577,0.00019233,2]
[408053265,1773076233372,-1068.28863848,0.00019233,2]
[408053266,1773076233381,-474.68913471,0.00019315,2]
[408053267,1773076233394,-593.59950377,0.00019315,2]
[408053268,1773076233403,-3903.3159098,0.00019344,2]
[408053269,1773076233412,-162.0,0.0001936,2]
[408053270,1773076233421,-847.0,0.0001936,2]
[408053271,1773076233430,-160.24329577,0.0001937,2]
[408053272,1773076233440,-160.24329577,0.0001937,2]
[408053273,1773076233449,-1068.28863848,0.0001937,2]
[408053274,1773076233458,-225.0,0.00019385,2]
[408053275,1773076233467,-200.0,0.00019404,2]
[408053276,1773076233475,-250.0,0.00019425,2]
[408053277,1773076233485,-400.52,0.00019425,2]
[408053278,1773076233494,-155.46450921,0.00019452,2]
[408053279,1773076233505,-94.53549079,0.00019452,2]
[408053280,1773076233514,-600.0,0.00019452,7]
[408053281,1773076233523,-500.0,0.00019452,7]
[408053282,1773076233532,-1068.28863848,0.00019452,2]
[408053283,1773076233541,-1000.0,0.00019452,2]
[408053284,1773076233551,-1387.05680654,0.00019455,2]
[408053285,1773076233565,-489.02572895,0.00019455,2]
[408053286,1773076233576,-2027.23337431,0.00019455,2]
[408053287,1773076233587,-160.24329577,0.00019479,2]
[408053288,1773076233596,-1397.96,0.00019479,2]
[408053289,1773076233605,-160.24329577,0.00019479,2]
[408053290,1773076233614,-476.0,0.00019497,2]
[408053291,1773076233623,-2000.0,0.000195,2]
[408053292,1773076233631,-250.0,0.00019509,2]
[408053293,1773076233640,-2570.47261017,0.00019511,2]
[408053294,1773076233654,-118.03738983,0.00019511,2]
[408053295,1773076233663,-235.46261017,0.0001952,2]
[408053296,1773076233674,-144.83738983,0.0001952,2]
[408053297,1773076233683,-250.0,0.00019521,2]
[408053298,1773076233692,-322.0,0.0001953,2]
[408053299,1773076233701,-1068.28863848,0.00019534,2]
[408053300,1773076233712,-500.51441936,0.00019545,2]
[408053301,1773076233720,-1000.0,0.00019547,2]
[408053302,1773076233730,-181.08010149,0.00019547,2]
[408053303,1773076233739,-719.04747942,0.00019547,2]
[408053304,1773076233749,-380.3,0.00019564,2]
[408053305,1773076233759,-3903.3159098,0.00019566,2]
[408053306,1773076233768,-2500.0,0.0001958,2]
[408053307,1773076233778,-160.24329577,0.00019589,2]
[408053308,1773076233787,-160.24329577,0.00019589,2]
[408053309,1773076233797,-250.0,0.000196,2]
[408053310,1773076233807,-2260.73645852,0.000196,2]
[408053311,1773076233816,-354.32700199,0.00019602,2]
[408053312,1773076233825,-380.3,0.00019607,2]
[408053313,1773076233838,-476.0,0.00019612,2]
[408053314,1773076233848,-1068.28863848,0.00019616,2]
[408053315,1773076233857,-476.0,0.0001962,2]
[408053316,1773076233866,-250.0,0.00019626,2]
[408053317,1773076233875,-163.235,0.00019633,2]
[408053318,1773076233885,-1342.0,0.00019633,2]
[408053319,1773076233894,-224.35639766,0.00019633,2]
[408053325,1773076238053,-394.64360234,0.00019633,2]
[408053326,1773076238063,-603.27535362,0.00019633,2]
[408053327,1773076238076,-438.72464638,0.00019633,2]
[408053328,1773076238085,-3505.0,0.00019633,2]
[408053329,1773076238094,-150.571,0.00019633,2]
[408053330,1773076238104,-1300.441,0.00019633,2]
[408053331,1773076238114,-693.47602537,0.00019633,2]
[408053348,1773076238386,-228.52397463,0.00019633,2]
[408053351,1773076238427,-1213.0,0.00019633,2]
[408053353,1773076238437,-2461.0,0.00019633,2]
[408053355,1773076238446,-414.0,0.00019633,2]
[408053357,1773076238454,-4000.0,0.00019638,2]
[408053359,1773076238464,-380.3,0.00019651,2]
[408053361,1773076238473,-250.0,0.00019656,2]
[408053363,1773076238482,-2248.15,0.00019663,2]
[408053365,1773076238490,-567.0,0.0001967,5]
[408053367,1773076238500,-487.0,0.0001967,2]
[408053369,1773076238510,-487.0,0.0001967,2]
[408053371,1773076238520,-487.0,0.0001967,2]
[408053373,1773076238530,-487.0,0.0001967,2]
[408053375,1773076238539,-487.0,0.0001967,2]
[408053377,1773076238548,-487.0,0.0001967,2]
[408053379,1773076238556,-487.0,0.0001967,2]
[408053381,1773076238565,-487.0,0.0001967,2]
[408053382,1773076238574,-487.0,0.0001967,2]
[408053384,1773076238583,-487.0,0.0001967,2]
[408053386,1773076238592,-487.0,0.0001967,2]
[408053388,1773076238601,-487.0,0.0001967,2]
[408053390,1773076238610,-787.15,0.0001967,2]
[408053392,1773076238619,-150.0,0.00019673,2]
[408053394,1773076238628,-587.0,0.00019673,2]
[408053396,1773076238637,-500.0,0.00019673,2]
[408053398,1773076238646,-150.0,0.00019673,2]
[408053400,1773076238654,-1335.0,0.00019673,2]
[408053402,1773076238663,-500.0,0.00019673,2]
[408053404,1773076238671,-500.0,0.00019673,2]
[408053406,1773076238681,-500.0,0.00019673,2]
[408053408,1773076238690,-500.0,0.00019673,2]
[408053410,1773076238699,-500.0,0.00019673,2]
[408053412,1773076238709,-500.0,0.00019673,2]
[408053414,1773076238718,-500.0,0.00019673,2]
[408053416,1773076238727,-150.0,0.00019673,2]
[408053418,1773076238737,-512.0,0.00019673,2]
[408053420,1773076238746,-150.0,0.00019673,2]
[408053422,1773076238755,-500.0,0.00019673,2]
[408053424,1773076238764,-500.0,0.00019673,2]
[408053426,1773076238773,-517.0,0.00019673,2]
[408053428,1773076238783,-462.24821319,0.00019673,2]
[408053430,1773076238796,-37.75178681,0.00019673,2]
[408053432,1773076238805,-500.0,0.00019673,2]
[408053434,1773076238814,-150.0,0.00019673,2]
[408053435,1773076238823,-150.0,0.00019673,2]
[408053437,1773076238832,-150.0,0.00019673,2]
[408053439,1773076238841,-500.0,0.00019673,2]
[408053441,1773076238850,-500.0,0.00019673,2]
[408053443,1773076238859,-150.0,0.00019673,2]
[408053445,1773076238868,-500.0,0.00019673,2]
[408053447,1773076238878,-150.0,0.00019673,2]
[408053449,1773076238887,-201.82767376,0.00019673,2]
[408053451,1773076238895,-483.0,0.00019673,2]
[408053453,1773076238904,-150.0,0.00019673,2]
[408053455,1773076238913,-500.0,0.00019673,2]
[408053457,1773076238922,-150.0,0.00019673,2]
[408053459,1773076238931,-398.42053943,0.00019678,2]
[408053542,1773076240192,-683.7324218,0.00019633,2]
[408053543,1773076240457,-2625.4475782,0.00019633,2]
[408053544,1773076240467,-1279.5524218,0.00019678,2]
[408053545,1773076240478,-2225.34294857,0.00019678,2]
[408053546,1773076240488,-847.0,0.0001968,2]
[408053547,1773076240497,-1000.0,0.00019682,2]
[408053548,1773076240506,-250.0,0.00019682,2]
[408053549,1773076240516,-476.0,0.00019683,2]
[408053550,1773076240525,-476.0,0.0001969,2]
[408053551,1773076240534,-380.3,0.00019695,2]
[408053552,1773076240544,-1068.28863848,0.00019699,2]
[408053553,1773076240554,-250.0,0.000197,2]
[408053554,1773076240564,-4493.10732417,0.000197,2]
[408053555,1773076240574,-476.0,0.00019704,2]
[408053556,1773076240583,-476.0,0.00019709,2]
[408053557,1773076240592,-4493.10732409,0.00019722,2]
[408053558,1773076240601,-500.0,0.00019725,2]
[408053559,1773076240610,-500.0,0.00019725,2]
[408053560,1773076240619,-500.0,0.00019725,2]
[408053561,1773076240628,-500.0,0.00019725,2]
[408053562,1773076240637,-500.0,0.00019725,2]
[408053563,1773076240647,-500.0,0.00019725,2]
[408053564,1773076240656,-500.0,0.00019725,2]
[408053565,1773076240667,-500.0,0.00019725,2]
[408053566,1773076240677,-500.0,0.00019725,2]
[408053567,1773076240686,-500.0,0.00019725,2]
[408053568,1773076240696,-500.0,0.00019725,2]
[408053569,1773076240705,-500.0,0.00019725,2]
[408053570,1773076240714,-500.0,0.00019725,2]
[408053571,1773076240723,-500.0,0.00019725,2]
[408053572,1773076240733,-500.0,0.00019725,2]
[408053573,1773076240743,-500.0,0.00019725,2]
[408053574,1773076240755,-500.0,0.00019725,2]
[408053575,1773076240765,-500.0,0.00019725,2]
[408053576,1773076240774,-500.0,0.00019725,2]
[408053578,1773076240786,-500.0,0.00019725,2]
[408053580,1773076240795,-500.0,0.00019725,2]
[408053581,1773076240805,-500.0,0.00019725,2]
[408053582,1773076240814,-500.0,0.00019725,2]
[408053583,1773076240823,-500.0,0.00019725,2]
[408053584,1773076240832,-500.0,0.00019725,2]
[408053585,1773076240841,-500.0,0.00019725,2]
[408053586,1773076240850,-500.0,0.00019725,2]
[408053587,1773076240859,-500.0,0.00019725,2]
[408053588,1773076240869,-500.0,0.00019725,2]
[408053589,1773076240878,-500.0,0.00019725,2]
[408053590,1773076240887,-500.0,0.00019725,2]
[408053591,1773076240896,-500.0,0.00019725,2]
[408053592,1773076240905,-500.0,0.00019725,2]
[408053593,1773076240915,-500.0,0.00019725,2]
[408053594,1773076240924,-500.0,0.00019725,2]
[408053595,1773076240933,-500.0,0.00019725,2]
[408053597,1773076240943,-500.0,0.00019725,2]
[408053599,1773076240952,-500.0,0.00019725,2]
[408053601,1773076240962,-500.0,0.00019725,2]
[408053603,1773076240971,-500.0,0.00019725,2]
[408053605,1773076240981,-500.0,0.00019725,2]
[408053606,1773076241000,-500.0,0.00019725,2]
[408053607,1773076241015,-426.77641536,0.00019725,2]
[408053608,1773076241032,-500.0,0.00019725,2]
[408053609,1773076241051,-500.0,0.00019725,2]
[408053610,1773076241065,-500.0,0.00019725,2]
[408053611,1773076241082,-500.0,0.00019725,2]
[408053612,1773076241100,-500.0,0.00019725,2]
[408053613,1773076241120,-500.0,0.00019725,2]
[408053614,1773076241138,-500.0,0.00019725,2]
[408053615,1773076241156,-500.0,0.00019725,2]
[408053616,1773076241174,-500.0,0.00019725,2]
[408053617,1773076241190,-250.0,0.00019726,2]
[408053618,1773076241205,-500.0,0.00019726,2]
[408053619,1773076241221,-160.24329577,0.00019726,2]
[408053620,1773076241236,-160.24329577,0.00019726,2]
[408053621,1773076241251,-1000.0,0.00019726,2]
[408053622,1773076241265,-150.0,0.00019728,2]
[408053623,1773076241287,-587.0,0.00019728,2]
[408053624,1773076241302,-1335.0,0.00019728,2]
[408053625,1773076241320,-500.0,0.00019728,2]
[408053626,1773076241334,-500.0,0.00019728,2]
[408053627,1773076241349,-500.0,0.00019728,2]
[408053628,1773076241364,-500.0,0.00019728,2]
[408053629,1773076241381,-500.0,0.00019728,2]
[408053630,1773076241396,-500.0,0.00019728,2]
[408053631,1773076241411,-500.0,0.00019728,2]
[408053632,1773076241427,-512.0,0.00019728,2]
[408053633,1773076241446,-150.0,0.00019728,2]
[408053634,1773076241462,-500.0,0.00019728,2]
[408053635,1773076241478,-500.0,0.00019728,2]
[408053636,1773076241493,-517.0,0.00019728,2]
[408053637,1773076241509,-500.0,0.00019728,2]
[408053638,1773076241523,-500.0,0.00019728,2]
[408053639,1773076241538,-200.0,0.00019728,2]
[408053640,1773076241552,-150.0,0.00019728,2]
[408053641,1773076241568,-500.0,0.00019728,2]
[408053642,1773076241582,-500.0,0.00019728,2]
[408053643,1773076241598,-500.0,0.00019728,2]
[408053644,1773076241614,-483.0,0.00019728,2]
[408053645,1773076241629,-500.0,0.00019728,2]
[408053646,1773076241644,-150.0,0.00019728,2]
[408053647,1773076241660,-380.3,0.00019738,2]
[408053648,1773076241675,-4493.10732409,0.00019744,2]
[408053649,1773076241690,-250.0,0.00019748,2]
[408053650,1773076241706,-1068.28863848,0.00019753,2]
[408053651,1773076241722,-4493.10732409,0.00019767,2]
[408053652,1773076241738,-250.0,0.00019778,2]
[408053653,1773076241753,-500.0,0.00019781,2]
[408053654,1773076241769,-380.3,0.00019782,2]
[408053655,1773076241785,-150.0,0.00019783,2]
[408053656,1773076241802,-587.0,0.00019783,2]
[408053657,1773076241817,-1335.0,0.00019783,2]
[408053658,1773076241832,-500.0,0.00019783,2]
[408053659,1773076241847,-500.0,0.00019783,2]
[408053660,1773076241862,-500.0,0.00019783,2]
[408053661,1773076241881,-500.0,0.00019783,2]
[408053662,1773076241896,-500.0,0.00019783,2]
[408053663,1773076241911,-500.0,0.00019783,2]
[408053664,1773076241925,-500.0,0.00019783,2]
[408053665,1773076241940,-512.0,0.00019783,2]
[408053666,1773076241954,-150.0,0.00019783,2]
[408053667,1773076241968,-500.0,0.00019783,2]
[408053668,1773076241982,-500.0,0.00019783,2]
[408053669,1773076241997,-517.0,0.00019783,2]
[408053670,1773076242011,-500.0,0.00019783,2]
[408053671,1773076242025,-211.02563779,0.00019783,2]
[408053672,1773076242040,-186.99459924,0.00019783,2]
[408053673,1773076242054,-500.0,0.00019783,2]
[408053674,1773076242068,-500.0,0.00019783,2]
[408053675,1773076242082,-500.0,0.00019783,2]
[408053676,1773076242097,-483.0,0.00019783,2]
[408053677,1773076242112,-500.0,0.00019783,2]
[408053678,1773076242130,-253.29632904,0.00019783,2]
[408053679,1773076242145,-322.0,0.00019786,2]
[408053680,1773076242161,-3903.3159098,0.00019789,2]
[408053681,1773076242176,-4493.10732409,0.00019789,2]
[408053682,1773076242191,-500.0,0.00019799,2]
[408053683,1773076242208,-289.3873478,0.00019799,2]
[408053684,1773076242223,-500.0,0.00019799,2]
[408053685,1773076242237,-582.46,0.00019799,2]
[408053686,1773076242252,-500.0,0.00019799,2]
[408053687,1773076242266,-500.0,0.00019799,2]
[408053688,1773076242281,-100000.0,0.000198,2]
[408053689,1773076242295,-2024.0,0.000198,2]
[408053690,1773076242309,-2000.0,0.000198,2]
[408053691,1773076242324,-2000.0,0.000198,2]
[408053692,1773076242338,-250.0,0.000198,2]
[408053693,1773076242353,-4493.10732409,0.00019811,2]
[408053694,1773076242369,-380.3,0.00019825,2]
[408053695,1773076242383,-4493.10732409,0.00019833,2]
[408053696,1773076242398,-544.737577,0.00019836,2]
[408053697,1773076242412,-160.24329577,0.00019836,2]
[408053698,1773076242426,-160.24329577,0.00019836,2]
[408053699,1773076242440,-1068.28863848,0.00019836,2]
[408053700,1773076242455,-200.0,0.00019837,2]
[408053701,1773076242469,-587.0,0.00019837,2]
[408053702,1773076242484,-1335.0,0.00019837,2]
[408053703,1773076242499,-500.0,0.00019837,2]
[408053704,1773076242514,-500.0,0.00019837,2]
[408053705,1773076242529,-500.0,0.00019837,2]
[408053706,1773076242543,-500.0,0.00019837,2]
[408053707,1773076242557,-500.0,0.00019837,2]
[408053708,1773076242572,-551.70358089,0.00019837,2]
[408053709,1773076242586,-512.0,0.00019837,2]
[408053710,1773076242601,-150.0,0.00019837,2]
[408053711,1773076242616,-500.0,0.00019837,2]
[408053712,1773076242630,-517.0,0.00019837,2]
[408053713,1773076242645,-500.0,0.00019837,2]
[408053714,1773076242660,-200.0,0.00019837,2]
[408053715,1773076242675,-483.0,0.00019837,2]
[408053716,1773076242690,-407.93036646,0.00019837,2]
[408053717,1773076242704,-250.0,0.00019844,2]
[408053718,1773076242719,-1000.0,0.00019847,2]
[408053719,1773076242734,-4493.10732409,0.00019856,2]
[408053720,1773076242749,-250.0,0.00019867,2]
[408053721,1773076242764,-380.3,0.00019869,2]
[408053722,1773076242779,-174.383,0.00019871,2]
[408053723,1773076242793,-3084.38,0.00019874,2]
[408053724,1773076242807,-4493.10732409,0.00019878,2]
[408053725,1773076242822,-2248.15,0.00019882,2]
[408053726,1773076242836,-587.0,0.00019892,2]
[408053727,1773076242851,-1335.0,0.00019892,2]
[408053728,1773076242874,-500.0,0.00019892,2]
[408053729,1773076242887,-250.0,0.00019892,2]
[408053730,1773076242902,-500.0,0.00019892,2]
[408053731,1773076242915,-500.0,0.00019892,2]
[408053732,1773076242930,-512.0,0.00019892,2]
[408053733,1773076242944,-150.0,0.00019892,2]
[408053741,1773076243236,-517.0,0.00019892,2]
[408053742,1773076243276,-500.0,0.00019892,2]
[408053743,1773076243286,-483.0,0.00019892,2]
[408053744,1773076243296,-500.0,0.00019899,2]
[408053745,1773076243305,-500.0,0.00019899,2]
[408053746,1773076243314,-500.0,0.00019899,2]
[408053747,1773076243323,-560.81371769,0.00019899,2]
[408053748,1773076243333,-500.0,0.00019899,2]
[408053749,1773076243343,-500.0,0.00019899,2]
[408053750,1773076243352,-500.0,0.00019899,2]
[408053751,1773076243361,-500.0,0.00019899,2]
[408053752,1773076243371,-500.0,0.00019899,2]
[408053753,1773076243380,-2523.05736046,0.000199,2]
[408053754,1773076243389,-32927.6463,0.000199,2]
[408053755,1773076243398,-5000.0,0.000199,2]
[408053756,1773076243407,-250.0,0.000199,2]
[408053757,1773076243416,-3903.3159098,0.000199,2]
[408053758,1773076243425,-189.1597078,0.000199,2]
[408053759,1773076243434,-435.88618444,0.000199,2]